[Event "January 9 Early 2024"]
[Site "https://www.chess.com"]
[Date "2024.01.11"]
[Round "9"]
[White "Trost, Edvin"]
[Black "Wagner, Dennis"]
[Result "1/2-1/2"]
[Board "211"]
[TimeControl "180+1"]
[WhiteFideId "1729519"]
[BlackFideId "24650684"]
[WhiteElo "2629"]
[BlackElo "2740"]
[WhiteTeam "SWE"]
[BlackTeam "GER"]
[WhiteClock "0:00:09"]
[BlackClock "0:00:20"]

1. d4 {[%clk 0:03:00]}  Nf6 {[%clk 0:02:58]} 2. c4 {[%clk 0:02:55]}  e6 {[%clk 0:02:58]} 3. Nc3 {[%clk 0:02:54]}  Bb4 {[%clk 0:02:58]} 4. e3 {[%clk 0:02:44]}  c5 {[%clk 0:02:57]} 5. a3 {[%clk 0:02:41]}  Bxc3+ {[%clk 0:02:55]} 6. bxc3 {[%clk 0:02:42]}  d6 {[%clk 0:02:47]} 7. Bd3 {[%clk 0:02:42]}  Nc6 {[%clk 0:02:47]} 8. Ne2 {[%clk 0:02:36]}  O-O {[%clk 0:02:32]} 9. O-O {[%clk 0:02:36]}  b6 {[%clk 0:02:24]} 10. Ng3 {[%clk 0:02:34]}  Ne8 {[%clk 0:02:12]} 11. d5 {[%clk 0:01:55]}  Na5 {[%clk 0:02:09]} 12. e4 {[%clk 0:01:55]}  Ba6 {[%clk 0:02:01]} 13. Qg4 {[%clk 0:01:36]}  Qc8 {[%clk 0:01:38]} 14. Qh4 {[%clk 0:01:17]}  Bxc4 {[%clk 0:01:34]} 15. Bxc4 {[%clk 0:01:15]}  Nxc4 {[%clk 0:01:35]} 16. Nh5 {[%clk 0:01:09]}  b5 {[%clk 0:01:23]} 17. a4 {[%clk 0:00:29]}  bxa4 {[%clk 0:01:16]} 18. Rxa4 {[%clk 0:00:28]}  Nb6 {[%clk 0:01:17]} 19. Ra3 {[%clk 0:00:19]}  exd5 {[%clk 0:01:17]} 20. exd5 {[%clk 0:00:20]}  Nxd5 {[%clk 0:00:37]} 21. c4 {[%clk 0:00:20]}  Ndf6 {[%clk 0:00:37]} 22. Nxg7 {[%clk 0:00:19]}  Nxg7 {[%clk 0:00:26]} 23. Qxf6 {[%clk 0:00:19]}  Qe6 {[%clk 0:00:27]} 24. Qh4 {[%clk 0:00:15]}  Nf5 {[%clk 0:00:25]} 25. Qg4+ {[%clk 0:00:07]}  Kh8 {[%clk 0:00:17]} 26. Bb2+ {[%clk 0:00:07]}  f6 {[%clk 0:00:18]} 27. Rf3 {[%clk 0:00:07]}  Nd4 {[%clk 0:00:15]} 28. Qxe6 {[%clk 0:00:06]}  Nxe6 {[%clk 0:00:16]} 29. Rd1 {[%clk 0:00:03]}  Nd4 {[%clk 0:00:14]} 30. Bxd4 {[%clk 0:00:03]}  cxd4 {[%clk 0:00:15]} 31. Rxd4 {[%clk 0:00:04]}  a5 {[%clk 0:00:16]} 32. Rxd6 {[%clk 0:00:04]}  a4 {[%clk 0:00:16]} 33. Ra3 {[%clk 0:00:04]}  Rfb8 {[%clk 0:00:16]} 34. g3 {[%clk 0:00:04]}  Kg7 {[%clk 0:00:15]} 35. c5 {[%clk 0:00:03]}  Rb4 {[%clk 0:00:13]} 36. c6 {[%clk 0:00:02]}  Rc4 {[%clk 0:00:14]} 37. Rd7+ {[%clk 0:00:01]}  Kg6 {[%clk 0:00:14]} 38. c7 {[%clk 0:00:02]}  Rc8 {[%clk 0:00:14]} 39. Kg2 {[%clk 0:00:01]}  h5 {[%clk 0:00:14]} 40. Re7 {[%clk 0:00:02]}  R8xc7 {[%clk 0:00:14]} 41. Rxc7 {[%clk 0:00:02]}  Rxc7 {[%clk 0:00:15]} 42. Rxa4 {[%clk 0:00:03]}  Rd7 {[%clk 0:00:15]} 43. Kf3 {[%clk 0:00:03]}  Rc7 {[%clk 0:00:16]} 44. Rd4 {[%clk 0:00:03]}  Rb7 {[%clk 0:00:16]} 45. Rd8 {[%clk 0:00:04]}  Rb3+ {[%clk 0:00:16]} 46. Kg2 {[%clk 0:00:04]}  Rb7 {[%clk 0:00:16]} 47. Rg8+ {[%clk 0:00:04]}  Kh6 {[%clk 0:00:16]} 48. Rc8 {[%clk 0:00:05]}  Kg6 {[%clk 0:00:16]} 49. Rc4 {[%clk 0:00:06]}  Kg5 {[%clk 0:00:16]} 50. Rh4 {[%clk 0:00:06]}  Kg6 {[%clk 0:00:17]} 51. Rf4 {[%clk 0:00:07]}  Rb5 {[%clk 0:00:17]} 52. Ra4 {[%clk 0:00:08]}  Rc5 {[%clk 0:00:17]} 53. Ra7 {[%clk 0:00:08]}  Rb5 {[%clk 0:00:18]} 54. Rc7 {[%clk 0:00:09]}  Ra5 {[%clk 0:00:18]} 55. Rb7 {[%clk 0:00:09]}  Rc5 {[%clk 0:00:18]} 56. Kh3 {[%clk 0:00:10]}  Rc4 {[%clk 0:00:19]} 57. Kg2 {[%clk 0:00:10]}  Rc2 {[%clk 0:00:19]} 58. Rb5 {[%clk 0:00:10]}  Rc4 {[%clk 0:00:19]} 59. Rb3 {[%clk 0:00:10]}  h4 {[%clk 0:00:20]} 60. Rb8 {[%clk 0:00:06]}  hxg3 {[%clk 0:00:20]} 61. fxg3 {[%clk 0:00:06]}  Rc2+ {[%clk 0:00:20]} 62. Kh3 {[%clk 0:00:07]}  Ra2 {[%clk 0:00:21]} 63. Rg8+ {[%clk 0:00:07]}  Kf7 {[%clk 0:00:21]} 64. Rg4 {[%clk 0:00:06]}  f5 {[%clk 0:00:21]} 65. Rc4 {[%clk 0:00:06]}  Kg6 {[%clk 0:00:21]} 66. Rc6+ {[%clk 0:00:06]}  Kg5 {[%clk 0:00:22]} 67. Rc8 {[%clk 0:00:07]}  Kh5 {[%clk 0:00:21]} 68. Rh8+ {[%clk 0:00:07]}  Kg5 {[%clk 0:00:22]} 69. Rh7 {[%clk 0:00:08]}  Kg6 {[%clk 0:00:22]} 70. Rh8 {[%clk 0:00:08]}  Rb2 {[%clk 0:00:22]} 71. Rd8 {[%clk 0:00:08]}  Ra2 {[%clk 0:00:22]} 72. Rd1 {[%clk 0:00:09]}  Rb2 {[%clk 0:00:22]} 73. Rh1 {[%clk 0:00:09]}  Kg5 {[%clk 0:00:22]} 74. Rf1 {[%clk 0:00:09]}  Ra2 {[%clk 0:00:21]} 75. Rg1 {[%clk 0:00:10]}  Rb2 {[%clk 0:00:22]} 76. Rg2 {[%clk 0:00:10]}  Rb8 {[%clk 0:00:21]} 77. Rf2 {[%clk 0:00:10]}  Rh8+ {[%clk 0:00:20]} 78. Kg2 {[%clk 0:00:10]}  Ra8 {[%clk 0:00:21]} 79. Rd2 {[%clk 0:00:10]}  Ra3 {[%clk 0:00:21]} 80. Rd5 {[%clk 0:00:09]}  Ra2+ {[%clk 0:00:21]} 81. Kh3 {[%clk 0:00:09]}  Rb2 {[%clk 0:00:21]} 82. Rc5 {[%clk 0:00:09]}  Ra2 {[%clk 0:00:21]} 83. Rd5 {[%clk 0:00:08]}  Rb2 {[%clk 0:00:22]} 84. Rd1 {[%clk 0:00:08]}  Ra2 {[%clk 0:00:22]} 85. Rg1 {[%clk 0:00:09]}  Ra8 {[%clk 0:00:20]} 86. Rf1 {[%clk 0:00:08]}  Ra2 {[%clk 0:00:20]} 87. Rg1 {[%clk 0:00:09]} 1/2-1/2

[Event "January 9 Early 2024"]
[Site "https://www.chess.com"]
[Date "2024.01.11"]
[Round "9"]
[White "Dmitrenko, Viktor"]
[Black "Pinheiro, Iung Alicio de O."]
[Result "1-0"]
[Board "213"]
[TimeControl "180+1"]
[WhiteFideId "14110270"]
[BlackFideId "2104350"]
[WhiteElo "2464"]
[BlackElo "2581"]
[WhiteTeam "UKR"]
[BlackTeam "BRA"]
[WhiteClock "0:00:07"]
[BlackClock "0:00:01"]

1. Nf3 {[%clk 0:03:00]}  d5 {[%clk 0:02:57]} 2. d4 {[%clk 0:02:59]}  Nf6 {[%clk 0:02:45]} 3. Bg5 {[%clk 0:02:57]}  Ne4 {[%clk 0:02:42]} 4. h4 {[%clk 0:02:52]}  h6 {[%clk 0:02:30]} 5. Bf4 {[%clk 0:02:51]}  c5 {[%clk 0:02:27]} 6. e3 {[%clk 0:02:50]}  Nc6 {[%clk 0:02:26]} 7. c3 {[%clk 0:02:47]}  Qb6 {[%clk 0:02:18]} 8. Qc1 {[%clk 0:02:45]}  Bf5 {[%clk 0:02:15]} 9. Nbd2 {[%clk 0:02:44]}  cxd4 {[%clk 0:02:07]} 10. exd4 {[%clk 0:02:42]}  Rc8 {[%clk 0:02:06]} 11. Be2 {[%clk 0:02:32]}  e6 {[%clk 0:01:28]} 12. O-O {[%clk 0:02:29]}  Be7 {[%clk 0:01:28]} 13. g3 {[%clk 0:02:25]}  g5 {[%clk 0:01:21]} 14. hxg5 {[%clk 0:02:17]}  hxg5 {[%clk 0:01:21]} 15. Be3 {[%clk 0:02:18]}  g4 {[%clk 0:01:18]} 16. Nh2 {[%clk 0:02:08]}  Nf6 {[%clk 0:00:49]} 17. Nb3 {[%clk 0:01:55]}  Rg8 {[%clk 0:00:39]} 18. Qd1 {[%clk 0:01:51]}  Qd8 {[%clk 0:00:37]} 19. a4 {[%clk 0:01:49]}  Bd6 {[%clk 0:00:33]} 20. a5 {[%clk 0:01:48]}  Qe7 {[%clk 0:00:30]} 21. Nc5 {[%clk 0:01:46]}  Rg6 {[%clk 0:00:27]} 22. b4 {[%clk 0:01:44]}  Kf8 {[%clk 0:00:26]} 23. Qd2 {[%clk 0:01:39]}  Kg7 {[%clk 0:00:26]} 24. Bf4 {[%clk 0:01:38]}  Rh8 {[%clk 0:00:25]} 25. Kg2 {[%clk 0:01:33]}  Ne4 {[%clk 0:00:24]} 26. Qe3 {[%clk 0:01:27]}  e5 {[%clk 0:00:19]} 27. dxe5 {[%clk 0:01:26]}  Nxe5 {[%clk 0:00:20]} 28. Rad1 {[%clk 0:01:18]}  Nf3 {[%clk 0:00:13]} 29. Nxf3 {[%clk 0:01:15]}  gxf3+ {[%clk 0:00:14]} 30. Bxf3 {[%clk 0:01:15]}  Bh3+ {[%clk 0:00:14]} 31. Kg1 {[%clk 0:01:15]}  Bxf4 {[%clk 0:00:13]} 32. Qxf4 {[%clk 0:01:13]}  Bxf1 {[%clk 0:00:14]} 33. Nxe4 {[%clk 0:01:07]}  dxe4 {[%clk 0:00:13]} 34. Bxe4 {[%clk 0:01:00]}  Rgh6 {[%clk 0:00:10]} 35. Rxf1 {[%clk 0:00:55]}  b6 {[%clk 0:00:09]} 36. a6 {[%clk 0:00:48]}  Qf6 {[%clk 0:00:08]} 37. Qg4+ {[%clk 0:00:47]}  Kf8 {[%clk 0:00:09]} 38. Rd1 {[%clk 0:00:44]}  Qe7 {[%clk 0:00:09]} 39. Rd7 {[%clk 0:00:39]}  Rh1+ {[%clk 0:00:09]} 40. Kg2 {[%clk 0:00:35]}  R8h2+ {[%clk 0:00:09]} 41. Kf3 {[%clk 0:00:36]}  Qf6+ {[%clk 0:00:09]} 42. Qf5 {[%clk 0:00:32]}  Qxc3+ {[%clk 0:00:09]} 43. Rd3 {[%clk 0:00:30]}  Rxf2+ {[%clk 0:00:07]} 44. Kxf2 {[%clk 0:00:19]}  Qe1+ {[%clk 0:00:07]} 45. Kg2 {[%clk 0:00:17]}  Qg1+ {[%clk 0:00:06]} 46. Kf3 {[%clk 0:00:17]}  Qf1+ {[%clk 0:00:04]} 47. Kg4 {[%clk 0:00:17]}  Qe2+ {[%clk 0:00:05]} 48. Qf3 {[%clk 0:00:16]}  Qb2 {[%clk 0:00:04]} 49. Rd8+ {[%clk 0:00:15]}  Kg7 {[%clk 0:00:04]} 50. Qf5 {[%clk 0:00:13]}  Qe2+ {[%clk 0:00:04]} 51. Bf3 {[%clk 0:00:12]}  Qe3 {[%clk 0:00:05]} 52. Qg5+ {[%clk 0:00:12]}  Qxg5+ {[%clk 0:00:05]} 53. Kxg5 {[%clk 0:00:13]}  Rb1 {[%clk 0:00:06]} 54. Rd4 {[%clk 0:00:11]}  Rb3 {[%clk 0:00:06]} 55. Kg4 {[%clk 0:00:10]}  Kf6 {[%clk 0:00:07]} 56. Bb7 {[%clk 0:00:10]}  Ke5 {[%clk 0:00:06]} 57. Rf4 {[%clk 0:00:10]}  f6 {[%clk 0:00:06]} 58. Rf5+ {[%clk 0:00:10]}  Ke6 {[%clk 0:00:06]} 59. Rf4 {[%clk 0:00:10]}  Ke5 {[%clk 0:00:06]} 60. Bc8 {[%clk 0:00:10]}  Rb2 {[%clk 0:00:05]} 61. b5 {[%clk 0:00:10]}  Rb3 {[%clk 0:00:03]} 62. Bd7 {[%clk 0:00:09]}  Rb2 {[%clk 0:00:03]} 63. Bc6 {[%clk 0:00:08]}  Rb3 {[%clk 0:00:03]} 64. Rf5+ {[%clk 0:00:08]}  Ke6 {[%clk 0:00:03]} 65. Rf3 {[%clk 0:00:09]}  Rb4+ {[%clk 0:00:03]} 66. Kh3 {[%clk 0:00:09]}  Rb2 {[%clk 0:00:04]} 67. Re3+ {[%clk 0:00:09]}  Kf5 {[%clk 0:00:04]} 68. Rd3 {[%clk 0:00:08]}  Kg5 {[%clk 0:00:04]} 69. Rd7 {[%clk 0:00:08]}  f5 {[%clk 0:00:03]} 70. Rg7+ {[%clk 0:00:08]}  Kf6 {[%clk 0:00:03]} 71. Rxa7 {[%clk 0:00:09]}  Ra2 {[%clk 0:00:02]} 72. Ra8 {[%clk 0:00:08]}  Ra1 {[%clk 0:00:02]} 73. a7 {[%clk 0:00:08]}  f4 {[%clk 0:00:01]} 74. Rf8+ {[%clk 0:00:07]}  Ke7 {[%clk 0:00:01]} 75. a8=Q {[%clk 0:00:07]} 1-0

[Event "January 9 Early 2024"]
[Site "https://www.chess.com"]
[Date "2024.01.11"]
[Round "9"]
[White "Khouri, Ahmed Abbas"]
[Black "Batsiashvili, Nino"]
[Result "1-0"]
[Board "216"]
[TimeControl "180+1"]
[WhiteFideId "9301518"]
[BlackFideId "13602993"]
[WhiteElo "2329"]
[BlackElo "2508"]
[WhiteTeam "UAE"]
[BlackTeam "GEO"]
[WhiteClock "0:00:07"]
[BlackClock "0:00:12"]

1. e4 {[%clk 0:02:55]}  a6 {[%clk 0:02:58]} 2. d4 {[%clk 0:02:55]}  b5 {[%clk 0:02:59]} 3. Bd3 {[%clk 0:02:56]}  e6 {[%clk 0:02:59]} 4. Nf3 {[%clk 0:02:56]}  Bb7 {[%clk 0:03:00]} 5. O-O {[%clk 0:02:56]}  Nf6 {[%clk 0:03:00]} 6. Re1 {[%clk 0:02:56]}  c5 {[%clk 0:02:59]} 7. c3 {[%clk 0:02:56]}  Be7 {[%clk 0:02:43]} 8. Nbd2 {[%clk 0:02:53]}  Nc6 {[%clk 0:02:39]} 9. Nf1 {[%clk 0:02:48]}  Rc8 {[%clk 0:02:34]} 10. a3 {[%clk 0:02:45]}  cxd4 {[%clk 0:02:25]} 11. cxd4 {[%clk 0:02:45]}  d5 {[%clk 0:02:25]} 12. e5 {[%clk 0:02:45]}  Ne4 {[%clk 0:02:25]} 13. Ng3 {[%clk 0:02:44]}  Na5 {[%clk 0:02:16]} 14. b4 {[%clk 0:02:27]}  Nc3 {[%clk 0:02:08]} 15. Qc2 {[%clk 0:02:17]}  Na4 {[%clk 0:02:02]} 16. Qd1 {[%clk 0:01:46]}  Nc4 {[%clk 0:02:02]} 17. Bf4 {[%clk 0:01:38]}  a5 {[%clk 0:01:54]} 18. Nd2 {[%clk 0:01:22]}  axb4 {[%clk 0:01:49]} 19. axb4 {[%clk 0:01:17]}  Nab2 {[%clk 0:01:29]} 20. Qf3 {[%clk 0:01:11]}  Nxd3 {[%clk 0:01:29]} 21. Qxd3 {[%clk 0:01:12]}  Bxb4 {[%clk 0:01:29]} 22. Rab1 {[%clk 0:01:05]}  Bxd2 {[%clk 0:01:28]} 23. Bxd2 {[%clk 0:01:06]}  Nxd2 {[%clk 0:01:29]} 24. Qxd2 {[%clk 0:01:02]}  Bc6 {[%clk 0:01:29]} 25. Nh5 {[%clk 0:00:57]}  O-O {[%clk 0:01:07]} 26. Rb3 {[%clk 0:00:43]}  f5 {[%clk 0:01:07]} 27. exf6 {[%clk 0:00:36]}  Rxf6 {[%clk 0:01:06]} 28. Nxf6+ {[%clk 0:00:32]}  Qxf6 {[%clk 0:01:06]} 29. Rf3 {[%clk 0:00:19]}  Qg6 {[%clk 0:01:06]} 30. Rc1 {[%clk 0:00:15]}  Bd7 {[%clk 0:00:54]} 31. Rxc8+ {[%clk 0:00:15]}  Bxc8 {[%clk 0:00:55]} 32. h3 {[%clk 0:00:15]}  h6 {[%clk 0:00:54]} 33. Qc3 {[%clk 0:00:14]}  Bd7 {[%clk 0:00:53]} 34. Qc7 {[%clk 0:00:13]}  Qe8 {[%clk 0:00:35]} 35. Qd6 {[%clk 0:00:12]}  Kh7 {[%clk 0:00:30]} 36. Rc3 {[%clk 0:00:10]}  b4 {[%clk 0:00:20]} 37. Rc7 {[%clk 0:00:10]}  Bb5 {[%clk 0:00:17]} 38. Qe5 {[%clk 0:00:07]}  Qg6 {[%clk 0:00:16]} 39. Rb7 {[%clk 0:00:05]}  Bd3 {[%clk 0:00:15]} 40. Rxb4 {[%clk 0:00:03]}  Be4 {[%clk 0:00:16]} 41. g3 {[%clk 0:00:03]}  Bf3 {[%clk 0:00:13]} 42. Rb7 {[%clk 0:00:02]}  Be4 {[%clk 0:00:11]} 43. Kh2 {[%clk 0:00:02]}  h5 {[%clk 0:00:11]} 44. Qf4 {[%clk 0:00:02]}  Bf5 {[%clk 0:00:11]} 45. Qe5 {[%clk 0:00:02]}  Be4 {[%clk 0:00:12]} 46. Rb8 {[%clk 0:00:02]}  Bf5 {[%clk 0:00:12]} 47. Ra8 {[%clk 0:00:02]}  Qg5 {[%clk 0:00:12]} 48. Qb8 {[%clk 0:00:02]}  Qd2 {[%clk 0:00:12]} 49. Qg8+ {[%clk 0:00:02]}  Kg6 {[%clk 0:00:12]} 50. Qe8+ {[%clk 0:00:02]}  Kh7 {[%clk 0:00:12]} 51. Qg8+ {[%clk 0:00:02]}  Kg6 {[%clk 0:00:13]} 52. Qe8+ {[%clk 0:00:03]}  Kh7 {[%clk 0:00:13]} 53. Qxh5+ {[%clk 0:00:04]}  Qh6 {[%clk 0:00:12]} 54. Qxh6+ {[%clk 0:00:04]}  Kxh6 {[%clk 0:00:12]} 55. f3 {[%clk 0:00:05]}  Kg6 {[%clk 0:00:12]} 56. g4 {[%clk 0:00:06]}  Bd3 {[%clk 0:00:12]} 57. Kg3 {[%clk 0:00:06]}  Kf6 {[%clk 0:00:12]} 58. Kf4 {[%clk 0:00:07]}  g5+ {[%clk 0:00:13]} 59. Ke3 {[%clk 0:00:08]}  Bf1 {[%clk 0:00:13]} 60. Rf8+ {[%clk 0:00:08]}  Kg6 {[%clk 0:00:13]} 61. Ra8 {[%clk 0:00:08]}  Bxh3 {[%clk 0:00:13]} 62. Ra6 {[%clk 0:00:08]}  Kf6 {[%clk 0:00:12]} 63. Ra1 {[%clk 0:00:08]}  e5 {[%clk 0:00:11]} 64. Rg1 {[%clk 0:00:07]}  exd4+ {[%clk 0:00:10]} 65. Kxd4 {[%clk 0:00:08]}  Ke6 {[%clk 0:00:11]} 66. Ke3 {[%clk 0:00:06]}  Ke5 {[%clk 0:00:11]} 67. Kf2 {[%clk 0:00:04]}  Kf4 {[%clk 0:00:12]} 68. Rh1 {[%clk 0:00:03]}  Bxg4 {[%clk 0:00:10]} 69. fxg4 {[%clk 0:00:03]}  Kxg4 {[%clk 0:00:11]} 70. Rd1 {[%clk 0:00:04]}  Kh3 {[%clk 0:00:10]} 71. Rxd5 {[%clk 0:00:05]}  g4 {[%clk 0:00:11]} 72. Rd3+ {[%clk 0:00:05]}  Kh2 {[%clk 0:00:11]} 73. Rg3 {[%clk 0:00:05]}  Kh1 {[%clk 0:00:11]} 74. Rxg4 {[%clk 0:00:06]}  Kh2 {[%clk 0:00:12]} 75. Rg3 {[%clk 0:00:06]}  Kh1 {[%clk 0:00:12]} 76. Rh3# {[%clk 0:00:07]} 1-0

[Event "January 9 Early 2024"]
[Site "https://www.chess.com"]
[Date "2024.01.11"]
[Round "9"]
[White "Tuncer, Tuna"]
[Black "Schnaider, Ilan"]
[Result "1-0"]
[Board "218"]
[TimeControl "180+1"]
[WhiteFideId "6349269"]
[BlackFideId "169013"]
[WhiteElo "2639"]
[BlackElo "2741"]
[WhiteTeam "TUR"]
[BlackTeam "ARG"]
[WhiteClock "0:00:12"]
[BlackClock "0:00:03"]

1. e4 {[%clk 0:03:00]}  c5 {[%clk 0:02:59]} 2. Nf3 {[%clk 0:02:59]}  d6 {[%clk 0:03:00]} 3. Bb5+ {[%clk 0:02:59]}  Bd7 {[%clk 0:03:00]} 4. Bxd7+ {[%clk 0:02:59]}  Qxd7 {[%clk 0:03:01]} 5. O-O {[%clk 0:02:59]}  Nf6 {[%clk 0:03:00]} 6. Re1 {[%clk 0:03:00]}  Nc6 {[%clk 0:02:59]} 7. c3 {[%clk 0:03:00]}  e6 {[%clk 0:02:59]} 8. d4 {[%clk 0:03:01]}  cxd4 {[%clk 0:03:00]} 9. cxd4 {[%clk 0:03:02]}  d5 {[%clk 0:03:00]} 10. e5 {[%clk 0:03:00]}  Ne4 {[%clk 0:03:01]} 11. Nbd2 {[%clk 0:03:00]}  Nxd2 {[%clk 0:03:00]} 12. Bxd2 {[%clk 0:03:01]}  Be7 {[%clk 0:03:00]} 13. Re3 {[%clk 0:03:01]}  O-O {[%clk 0:02:56]} 14. Rd3 {[%clk 0:03:01]}  a5 {[%clk 0:02:55]} 15. h4 {[%clk 0:03:00]}  h6 {[%clk 0:02:54]} 16. Nh2 {[%clk 0:02:55]}  f5 {[%clk 0:02:49]} 17. exf6 {[%clk 0:02:39]}  Bxf6 {[%clk 0:02:49]} 18. Ng4 {[%clk 0:02:36]}  Bxd4 {[%clk 0:02:19]} 19. Bxh6 {[%clk 0:01:41]}  gxh6 {[%clk 0:02:09]} 20. Nxh6+ {[%clk 0:01:31]}  Kh8 {[%clk 0:02:09]} 21. Rxd4 {[%clk 0:00:46]}  Nxd4 {[%clk 0:02:10]} 22. Qxd4+ {[%clk 0:00:47]}  Qg7 {[%clk 0:02:10]} 23. Qxg7+ {[%clk 0:00:47]}  Kxg7 {[%clk 0:02:11]} 24. Ng4 {[%clk 0:00:48]}  Rf4 {[%clk 0:02:09]} 25. f3 {[%clk 0:00:48]}  Rh8 {[%clk 0:02:07]} 26. Re1 {[%clk 0:00:48]}  Kf7 {[%clk 0:01:54]} 27. Rc1 {[%clk 0:00:48]}  Rb4 {[%clk 0:01:39]} 28. Rc7+ {[%clk 0:00:43]}  Kg6 {[%clk 0:01:37]} 29. b3 {[%clk 0:00:36]}  Rxh4 {[%clk 0:01:35]} 30. Re7 {[%clk 0:00:29]}  Rb6 {[%clk 0:01:23]} 31. Kf2 {[%clk 0:00:13]}  d4 {[%clk 0:01:12]} 32. Rd7 {[%clk 0:00:12]}  Rb4 {[%clk 0:01:04]} 33. Kg3 {[%clk 0:00:12]}  Rh1 {[%clk 0:00:50]} 34. Ne5+ {[%clk 0:00:13]}  Kf5 {[%clk 0:00:38]} 35. Nd3 {[%clk 0:00:12]}  Rb5 {[%clk 0:00:26]} 36. Rxd4 {[%clk 0:00:11]}  Rd5 {[%clk 0:00:25]} 37. Rf4+ {[%clk 0:00:12]}  Kg6 {[%clk 0:00:24]} 38. Nf2 {[%clk 0:00:12]}  Ra1 {[%clk 0:00:17]} 39. Ng4 {[%clk 0:00:13]}  Rd2 {[%clk 0:00:15]} 40. Rf6+ {[%clk 0:00:13]}  Kg7 {[%clk 0:00:14]} 41. Rxe6 {[%clk 0:00:14]}  Raxa2 {[%clk 0:00:15]} 42. Ne3 {[%clk 0:00:14]}  b5 {[%clk 0:00:13]} 43. Rb6 {[%clk 0:00:14]}  b4 {[%clk 0:00:11]} 44. Kf4 {[%clk 0:00:11]}  Rd3 {[%clk 0:00:10]} 45. g4 {[%clk 0:00:09]}  Rxb3 {[%clk 0:00:09]} 46. Nf5+ {[%clk 0:00:09]}  Kf7 {[%clk 0:00:09]} 47. g5 {[%clk 0:00:09]}  Rf2 {[%clk 0:00:07]} 48. g6+ {[%clk 0:00:09]}  Ke8 {[%clk 0:00:05]} 49. Rb8+ {[%clk 0:00:06]}  Kd7 {[%clk 0:00:05]} 50. Nh4 {[%clk 0:00:06]}  Rf1 {[%clk 0:00:02]} 51. g7 {[%clk 0:00:06]}  Rg1 {[%clk 0:00:03]} 52. g8=Q {[%clk 0:00:07]}  Rxg8 {[%clk 0:00:03]} 53. Rxg8 {[%clk 0:00:07]}  a4 {[%clk 0:00:04]} 54. Ra8 {[%clk 0:00:08]}  a3 {[%clk 0:00:04]} 55. Kg5 {[%clk 0:00:08]}  Rb2 {[%clk 0:00:05]} 56. f4 {[%clk 0:00:08]}  a2 {[%clk 0:00:05]} 57. f5 {[%clk 0:00:09]}  b3 {[%clk 0:00:06]} 58. f6 {[%clk 0:00:09]}  Rb1 {[%clk 0:00:07]} 59. f7 {[%clk 0:00:10]}  Rg1+ {[%clk 0:00:04]} 60. Kf6 {[%clk 0:00:10]}  a1=Q+ {[%clk 0:00:02]} 61. Rxa1 {[%clk 0:00:10]}  Rxa1 {[%clk 0:00:03]} 62. f8=Q {[%clk 0:00:10]}  b2 {[%clk 0:00:04]} 63. Qe7+ {[%clk 0:00:09]}  Kc6 {[%clk 0:00:05]} 64. Qe6+ {[%clk 0:00:10]}  Kb7 {[%clk 0:00:02]} 65. Qb3+ {[%clk 0:00:10]}  Kc8 {[%clk 0:00:01]} 66. Qxb2 {[%clk 0:00:11]}  Ra6+ {[%clk 0:00:02]} 67. Kg5 {[%clk 0:00:10]}  Ra5+ {[%clk 0:00:02]} 68. Nf5 {[%clk 0:00:11]}  Kc7 {[%clk 0:00:01]} 69. Qg7+ {[%clk 0:00:10]}  Kc6 {[%clk 0:00:01]} 70. Qc3+ {[%clk 0:00:11]}  Kb6 {[%clk 0:00:02]} 71. Qb4+ {[%clk 0:00:11]}  Rb5 {[%clk 0:00:02]} 72. Qd6+ {[%clk 0:00:12]}  Kb7 {[%clk 0:00:03]} 73. Kf4 {[%clk 0:00:12]}  Rb6 {[%clk 0:00:03]} 74. Qd7+ {[%clk 0:00:12]}  Ka6 {[%clk 0:00:04]} 75. Nd6 {[%clk 0:00:13]}  Rb4+ {[%clk 0:00:04]} 76. Ke5 {[%clk 0:00:14]}  Kb6 {[%clk 0:00:04]} 77. Qd8+ {[%clk 0:00:13]}  Kc6 {[%clk 0:00:02]} 78. Qc8+ {[%clk 0:00:13]}  Kb6 {[%clk 0:00:02]} 79. Nc4+ {[%clk 0:00:13]}  Kb5 {[%clk 0:00:02]} 80. Kd5 {[%clk 0:00:14]}  Ka4 {[%clk 0:00:02]} 81. Qa6+ {[%clk 0:00:14]}  Kb3 {[%clk 0:00:03]} 82. Qa3+ {[%clk 0:00:13]}  Kc2 {[%clk 0:00:03]} 83. Qxb4 {[%clk 0:00:12]}  Kd3 {[%clk 0:00:03]} 84. Qd2# {[%clk 0:00:12]} 1-0